fUST/lending_fUST_20251122
["ID","MTS","AMOUNT","RATE_DAILY","PERIOD"]
[394587685,1763741041796,764.76,1e-05,2]
[394587686,1763741042131,764.76,1e-05,2]
[394587687,1763741042452,764.76,1.1e-05,2]
[394587688,1763741042748,764.76,1.1e-05,2]
[394587689,1763741043093,764.76,1.2e-05,2]
[394587690,1763741043415,764.76,1.2e-05,2]
[394587691,1763741043697,764.76,1.3e-05,2]
[394587692,1763741043993,764.76,1.3e-05,2]
[394587693,1763741044278,764.76,1.4e-05,2]
[394587694,1763741044594,764.76,1.4e-05,2]
[394587695,1763741044892,764.76,1.5e-05,2]
[394587696,1763741045606,764.76,1.5e-05,2]
[394587697,1763741045683,764.76,1.6e-05,2]
[394587698,1763741050593,764.76,1.6e-05,2]
[394587699,1763741050951,764.76,1.6e-05,2]
[394587700,1763741051267,764.76,1.7e-05,2]
[394587701,1763741051569,764.76,1.7e-05,2]
[394587702,1763741051910,764.76,1.8e-05,2]
[394587703,1763741052277,764.76,1.8e-05,2]
[394587704,1763741052710,764.76,1.9e-05,2]
[394587705,1763741053013,764.76,1.9e-05,2]
[394587706,1763741053332,764.76,2e-05,2]
[394587707,1763741053643,764.76,2e-05,2]
[394587708,1763741053945,764.76,2.1e-05,2]
[394587709,1763741054261,764.76,2.1e-05,2]
[394587711,1763741054581,764.76,2.1e-05,2]
[394587712,1763741056057,764.76,2.2e-05,2]
[394587713,1763741056145,764.76,2.2e-05,2]
[394587714,1763741056317,764.76,2.3e-05,2]
[394587715,1763741056684,764.76,2.3e-05,2]
[394587716,1763741057033,764.76,2.4e-05,2]
[394587717,1763741057399,764.76,2.4e-05,2]
[394587718,1763741057734,764.76,2.5e-05,2]
[394587719,1763741058040,764.76,2.5e-05,2]
[394587720,1763741058326,764.76,2.6e-05,2]
[394587721,1763741058710,764.76,2.6e-05,2]
[394587722,1763741059020,764.76,2.7e-05,2]
[394587723,1763741059319,764.76,2.7e-05,2]
[394587724,1763741059598,764.76,2.7e-05,2]
[394587725,1763741059876,764.76,2.8e-05,2]
[394587726,1763741060174,764.76,2.8e-05,2]
[394587727,1763741060481,764.76,2.9e-05,2]
[394587728,1763741060795,764.76,2.9e-05,2]
[394587729,1763741061102,764.76,3e-05,2]
[394587730,1763741062070,764.76,3e-05,2]
[394587731,1763741062399,764.76,3.1e-05,2]
[394587732,1763741062710,764.76,3.1e-05,2]
[394587733,1763741063015,764.76,3.2e-05,2]
[394587734,1763741063590,764.76,3.2e-05,2]
[394587735,1763741063653,764.76,3.3e-05,2]
[394587736,1763741101791,507.35,1e-05,2]
[394587737,1763741102091,507.35,1e-05,2]
[394587738,1763741102404,507.35,1.1e-05,2]
[394587739,1763741102720,507.35,1.1e-05,2]
[394587740,1763741103049,507.35,1.2e-05,2]
[394587741,1763741103354,507.35,1.2e-05,2]
[394587742,1763741103659,507.35,1.3e-05,2]
[394587743,1763741103980,507.35,1.3e-05,2]
[394587744,1763741104520,507.35,1.4e-05,2]
[394587745,1763741104875,507.35,1.4e-05,2]
[394587746,1763741105175,507.35,1.5e-05,2]
[394587747,1763741105472,507.35,1.5e-05,2]
[394587748,1763741105782,507.35,1.6e-05,2]
[394587749,1763741106108,166.45,1.6e-05,2]
[394587750,1763741106156,340.9,1.6e-05,2]
[394587751,1763741106410,507.35,1.6e-05,2]
[394587752,1763741107340,507.35,1.7e-05,2]
[394587753,1763741107689,507.35,1.7e-05,2]
[394587754,1763741108298,507.35,1.8e-05,2]
[394587755,1763741108474,507.35,1.8e-05,2]
[394587756,1763741108595,507.35,1.9e-05,2]
[394587757,1763741108918,507.35,1.9e-05,2]
[394587758,1763741109243,507.35,2e-05,2]
[394587759,1763741109557,507.35,2e-05,2]
[394587760,1763741109859,507.35,2.1e-05,2]
[394587761,1763741110244,507.35,2.1e-05,2]
[394587762,1763741110542,507.35,2.1e-05,2]
[394587763,1763741110856,507.35,2.2e-05,2]
[394587764,1763741111163,507.35,2.2e-05,2]
[394587765,1763741111571,507.35,2.3e-05,2]
[394587766,1763741111893,507.35,2.3e-05,2]
[394587767,1763741112215,507.35,2.4e-05,2]
[394587768,1763741112499,507.35,2.4e-05,2]
[394587769,1763741112823,507.35,2.5e-05,2]
[394587770,1763741113122,507.35,2.5e-05,2]
[394587771,1763741113457,507.35,2.6e-05,2]
[394587772,1763741113794,507.35,2.6e-05,2]
[394587773,1763741114086,507.35,2.7e-05,2]
[394587774,1763741114398,507.35,2.7e-05,2]
[394587775,1763741114813,507.35,2.7e-05,2]
[394587776,1763741115194,507.35,2.8e-05,2]
[394587777,1763741115556,507.35,2.8e-05,2]
[394587778,1763741115904,507.35,2.9e-05,2]
[394587779,1763741116202,507.35,2.9e-05,2]
[394587780,1763741116653,507.35,3e-05,2]
[394587781,1763741117069,507.35,3e-05,2]
[394587782,1763741117399,507.35,3.1e-05,2]
[394587783,1763741117728,507.35,3.1e-05,2]
[394587784,1763741118030,507.35,3.2e-05,2]
[394587785,1763741118683,507.35,3.2e-05,2]
[394587786,1763741118789,507.35,3.3e-05,2]
[394587787,1763741162462,544.64,1e-05,2]
[394587788,1763741162788,544.64,1e-05,2]
[394587789,1763741163145,544.64,1.1e-05,2]
[394587790,1763741163503,544.64,1.1e-05,2]
[394587791,1763741163816,544.64,1.2e-05,2]
[394587792,1763741164121,544.64,1.2e-05,2]
[394587793,1763741164423,544.64,1.3e-05,2]
[394587794,1763741164910,544.64,1.3e-05,2]
[394587795,1763741165077,544.64,1.4e-05,2]
[394587796,1763741165389,544.64,1.4e-05,2]
[394587797,1763741165682,544.64,1.5e-05,2]
[394587798,1763741166634,544.64,1.5e-05,2]
[394587799,1763741166993,544.64,1.6e-05,2]
[394587800,1763741167347,544.64,1.6e-05,2]
[394587801,1763741167655,544.64,1.6e-05,2]
[394587802,1763741167954,544.64,1.7e-05,2]
[394587803,1763741168257,544.64,1.7e-05,2]
[394587804,1763741168563,544.64,1.8e-05,2]
[394587805,1763741168869,544.64,1.8e-05,2]
[394587806,1763741169209,544.64,1.9e-05,2]
[394587807,1763741169525,544.64,1.9e-05,2]
[394587808,1763741169819,544.64,2e-05,2]
[394587809,1763741170175,544.64,2e-05,2]
[394587810,1763741170647,544.64,2.1e-05,2]
[394587811,1763741170814,544.64,2.1e-05,2]
[394587812,1763741171138,544.64,2.1e-05,2]
[394587813,1763741171638,544.64,2.2e-05,2]
[394587814,1763741171800,544.64,2.2e-05,2]
[394587815,1763741172112,544.64,2.3e-05,2]
[394587816,1763741172371,544.64,2.3e-05,2]
[394587817,1763741172671,544.64,2.4e-05,2]
[394587818,1763741173018,544.64,2.4e-05,2]
[394587819,1763741173327,544.64,2.5e-05,2]
[394587820,1763741173664,544.64,2.5e-05,2]
[394587821,1763741173994,544.64,2.6e-05,2]
[394587822,1763741174323,544.64,2.6e-05,2]
[394587823,1763741174651,544.64,2.7e-05,2]
[394587824,1763741174939,544.64,2.7e-05,2]
[394587825,1763741175215,544.64,2.7e-05,2]
[394587826,1763741175548,544.64,2.8e-05,2]
[394587827,1763741175886,544.64,2.8e-05,2]
[394587828,1763741176162,544.64,2.9e-05,2]
[394587829,1763741176461,544.64,2.9e-05,2]
[394587830,1763741176737,544.64,3e-05,2]
[394587831,1763741177031,544.64,3e-05,2]
[394587832,1763741177343,544.64,3.1e-05,2]
[394587833,1763741177827,544.64,3.1e-05,2]
[394587834,1763741178115,544.64,3.2e-05,2]
[394587835,1763741178416,544.64,3.2e-05,2]
[394587836,1763741178706,544.64,3.3e-05,2]
[394587838,1763741256759,161.0,6.9e-07,2]
[394587839,1763741257796,161.0,6.9e-07,2]
[394587840,1763741281645,531.13,1e-05,2]
[394587841,1763741282684,531.13,1e-05,2]
[394587842,1763741283071,531.13,1.1e-05,2]
[394587843,1763741283430,531.13,1.1e-05,2]
[394587844,1763741283716,531.13,1.2e-05,2]
[394587845,1763741284041,531.13,1.2e-05,2]
[394587846,1763741284602,531.13,1.3e-05,2]
[394587847,1763741284747,531.13,1.3e-05,2]
[394587848,1763741285056,531.13,1.4e-05,2]
[394587849,1763741285336,531.13,1.4e-05,2]
[394587850,1763741285704,531.13,1.5e-05,2]
[394587851,1763741286045,531.13,1.5e-05,2]
[394587852,1763741286336,531.13,1.6e-05,2]
[394587853,1763741286666,531.13,1.6e-05,2]
[394587854,1763741286945,531.13,1.6e-05,2]
[394587855,1763741287246,531.13,1.7e-05,2]
[394587856,1763741287573,531.13,1.7e-05,2]
[394587857,1763741287864,531.13,1.8e-05,2]
[394587858,1763741288159,531.13,1.8e-05,2]
[394587859,1763741288463,531.13,1.9e-05,2]
[394587860,1763741288962,531.13,1.9e-05,2]
[394587861,1763741289070,531.13,2e-05,2]
[394587862,1763741289363,531.13,2e-05,2]
[394587863,1763741289647,531.13,2.1e-05,2]
[394587864,1763741289992,531.13,2.1e-05,2]
[394587865,1763741290227,531.13,2.1e-05,2]
[394587866,1763741290540,531.13,2.2e-05,2]
[394587867,1763741290876,531.13,2.2e-05,2]
[394587868,1763741291171,531.13,2.3e-05,2]
[394587869,1763741291453,531.13,2.3e-05,2]
[394587870,1763741291788,531.13,2.4e-05,2]
[394587871,1763741292073,531.13,2.4e-05,2]
[394587872,1763741292353,531.13,2.5e-05,2]
[394587873,1763741292649,531.13,2.5e-05,2]
[394587874,1763741293041,531.13,2.6e-05,2]
[394587875,1763741295454,531.13,2.6e-05,2]
[394587876,1763741295761,531.13,2.7e-05,2]
[394587877,1763741296056,531.13,2.7e-05,2]
[394587878,1763741296364,531.13,2.7e-05,2]
[394587879,1763741296854,531.13,2.8e-05,2]
[394587880,1763741297005,531.13,2.8e-05,2]
[394587881,1763741297341,531.13,2.9e-05,2]
[394587882,1763741297768,531.13,2.9e-05,2]
[394587883,1763741298069,531.13,3e-05,2]
[394587884,1763741298349,531.13,3e-05,2]
[394587885,1763741298638,531.13,3.1e-05,2]
[394587886,1763741299028,531.13,3.1e-05,2]
[394587887,1763741299374,531.13,3.2e-05,2]
[394587888,1763741299700,531.13,3.2e-05,2]
[394587889,1763741341845,176.98,1e-05,2]
[394587890,1763741342176,176.98,2.1e-05,2]
[394587891,1763741342481,176.98,3.3e-05,2]
[394587900,1763741402317,156.82,1e-05,2]
[394587901,1763741402609,156.82,1.3e-05,2]
[394587902,1763741402946,156.82,1.5e-05,2]
[394587903,1763741403246,156.82,1.8e-05,2]
[394587904,1763741403643,156.82,2e-05,2]
[394587905,1763741403989,156.82,2.3e-05,2]
[394587906,1763741404350,156.82,2.5e-05,2]
[394587907,1763741404914,156.82,2.8e-05,2]
[394587908,1763741405282,156.82,3e-05,2]
[394587909,1763741405682,156.82,3.3e-05,2]
[394587946,1763741432679,-163.46915366,6.485e-05,2]
[394587947,1763741432691,-163.46915366,6.551e-05,2]
[394587948,1763741432702,-163.46915366,6.617e-05,2]
[394587949,1763741432712,-150.0,6.855e-05,2]
[394587950,1763741432722,-163.46915366,7.541e-05,2]
[394587951,1763741432733,-286.82849997,8.34e-05,2]
[394587952,1763741432742,-177.0,8.855e-05,2]
[394587953,1763741432752,-204.0,0.00010855,2]
[394587954,1763741432762,-231.0,0.00012855,2]
[394587955,1763741432772,-1103.514005,0.00013699,2]
[394587956,1763741432782,-1000.0,0.00014795,2]
[394587957,1763741432792,-258.0,0.00014855,2]
[394587958,1763741432802,-999.0,0.00014874,2]
[394587959,1763741432811,-238.3729699,0.00014904,2]
[394587960,1763741432821,-414.0,0.00016007,2]
[394587961,1763741432830,-285.0,0.00016855,2]
[394587962,1763741432840,-214.051197,0.00017,2]
[394587963,1763741432849,-178.55916405,0.00017111,2]
[394587964,1763741432859,-1200.0,0.00017241,2]
[394587965,1763741432869,-300.0,0.00017241,2]
[394587966,1763741432879,-500.0,0.00017242,2]
[394587967,1763741432888,-500.0,0.00017242,2]
[394587968,1763741432898,-500.0,0.00017242,2]
[394587969,1763741432907,-286.64329036,0.00017242,2]
[394587970,1763741432917,-500.0,0.00017242,2]
[394587971,1763741432927,-500.0,0.00017242,2]
[394587972,1763741432936,-500.0,0.00017242,2]
[394587973,1763741432946,-500.0,0.00017242,2]
[394587974,1763741432956,-591.54823636,0.00017242,2]
[394587975,1763741432965,-500.0,0.00017242,2]
[394587976,1763741432975,-500.0,0.00017242,2]
[394587977,1763741432985,-500.0,0.00017242,2]
[394587978,1763741432994,-500.0,0.00017242,2]
[394587979,1763741433004,-500.0,0.00017242,2]
[394587980,1763741433014,-500.0,0.00017242,2]
[394587981,1763741433034,-500.0,0.00017242,2]
[394587982,1763741433045,-500.0,0.00017242,2]
[394587983,1763741433055,-500.0,0.00017242,2]
[394587984,1763741433064,-500.0,0.00017242,2]
[394587985,1763741433075,-500.0,0.00017242,2]
[394587986,1763741433085,-500.0,0.00017242,2]
[394587987,1763741433095,-500.0,0.00017242,2]
[394587988,1763741433105,-500.0,0.00017242,2]
[394587989,1763741433114,-500.0,0.00017242,2]
[394587990,1763741433124,-500.0,0.00017242,2]
[394587993,1763741433135,-500.0,0.00017242,2]
[394587994,1763741433145,-564.15416942,0.00017242,2]
[394587996,1763741433155,-500.0,0.00017242,2]
[394587997,1763741433166,-500.0,0.00017242,2]
[394587999,1763741433176,-295.724,0.00017243,2]
[394588001,1763741433187,-2149.0,0.00017243,2]
[394588003,1763741433198,-629.0,0.00017243,2]
[394588005,1763741433208,-988.0,0.00017243,2]
[394588007,1763741433218,-22531.83901246,0.00017759,2]
[394588026,1763741438901,-4617.06328202,0.00017759,2]
[394588027,1763741438912,-340.33332483,0.00017759,2]
[394588050,1763741440825,-329.91131383,0.00017581,2]
[394588054,1763741443666,-646.34404654,0.00017581,2]
[394588055,1763741443678,-1599.75791277,0.00017581,2]
[394588193,1763741651421,2000.0,0.00025279,120]
[394588196,1763741654894,2000.0,0.0002,30]
[394588267,1763742147224,177.0,0.00020783,120]
[394588268,1763742148470,177.0,0.00021822,120]
[394588269,1763742149756,177.0,0.00022913,120]
[394588270,1763742151003,177.0,0.00024059,120]
[394588271,1763742220916,5000.0,0.00014,10]
[394588272,1763742243161,5000.0,0.00014,10]
[394588273,1763742404331,-191.34643683,7.929e-05,2]
[394588274,1763742404362,-191.34643683,8.009e-05,2]
[394588275,1763742404390,-44.60994984,8.09e-05,2]
[394588494,1763742631990,-191.34643683,7.465e-05,2]
[394588495,1763742632000,-191.34643683,7.54e-05,2]
[394588496,1763742632009,-70.20313634,7.616e-05,2]
[394588513,1763742638016,-169.652083,6.774e-05,2]
[394588515,1763742638026,-121.14330049,7.616e-05,2]
[394588517,1763742638036,-150.0,7.732e-05,2]
[394588519,1763742638045,-191.34643683,8.507e-05,2]
[394588521,1763742638055,-169.652083,9.032e-05,2]
[394588523,1763742638064,-177.0,9.732e-05,2]
[394588525,1763742638074,-169.652083,0.0001129,2]
[394588527,1763742638084,-204.0,0.00011732,2]
[394588529,1763742638094,-169.652083,0.00013548,2]
[394588531,1763742638103,-231.0,0.00013732,2]
[394588533,1763742638113,-153.5150423,0.00013879,2]
[394588535,1763742638123,-1383.3547037,0.00015372,2]
[394588537,1763742638132,-258.0,0.00015732,2]
[394588538,1763742638142,-3366.36210595,0.0001589,2]
[394588541,1763742638152,-277.0,0.00015987,2]
[394588543,1763742638162,-300.0,0.00015987,2]
[394588545,1763742638172,-1200.0,0.00015987,2]
[394588546,1763742638182,-1200.0,0.00015988,2]
[394588548,1763742638192,-500.0,0.00015988,2]
[394588551,1763742638205,-500.0,0.00015988,2]
[394588552,1763742638215,-500.0,0.00015988,2]
[394588555,1763742638225,-500.0,0.00015988,2]
[394588557,1763742638235,-500.0,0.00015988,2]
[394588559,1763742638245,-500.0,0.00015988,2]
[394588561,1763742638254,-500.0,0.00015988,2]
[394588563,1763742638264,-500.0,0.00015988,2]
[394588565,1763742638274,-222.09814389,0.00015988,2]
[394588567,1763742638283,-500.0,0.00015988,2]
[394588569,1763742638293,-500.0,0.00015988,2]
[394588571,1763742638302,-500.0,0.00015988,2]
[394588573,1763742638311,-500.0,0.00015988,2]
[394588575,1763742638321,-500.0,0.00015988,2]
[394588576,1763742638331,-500.0,0.00015988,2]
[394588578,1763742638339,-500.0,0.00015988,2]
[394588580,1763742638349,-500.0,0.00015988,2]
[394588582,1763742638359,-500.0,0.00015988,2]
[394588584,1763742638369,-500.0,0.00015988,2]
[394588586,1763742638378,-500.0,0.00015988,2]
[394588588,1763742638388,-500.0,0.00015988,2]
[394588590,1763742638397,-500.0,0.00015988,2]
[394588592,1763742638406,-500.0,0.00015988,2]
[394588594,1763742638415,-500.0,0.00015988,2]
[394588596,1763742638425,-500.0,0.00015988,2]
[394588598,1763742638435,-500.0,0.00015988,2]
[394588600,1763742638444,-383.62201915,0.00015988,2]
[394588602,1763742638456,-500.0,0.00015988,2]
[394588604,1763742638465,-500.0,0.00015988,2]
[394588606,1763742638475,-500.0,0.00015988,2]
[394588608,1763742638485,-500.0,0.00015988,2]
[394588610,1763742638495,-500.0,0.00015988,2]
[394588612,1763742638505,-500.0,0.00015989,2]
[394588614,1763742638515,-405.90944048,0.00015989,2]
[394588616,1763742638525,-500.0,0.00015989,2]
[394588618,1763742638534,-500.0,0.00015989,2]
[394588620,1763742638545,-500.0,0.00015989,2]
[394588622,1763742638554,-500.0,0.00015989,2]
[394588624,1763742638564,-436.30838372,0.00015989,2]
[394588626,1763742638574,-500.0,0.00015989,2]
[394588628,1763742638583,-500.0,0.00015989,2]
[394588630,1763742638594,-500.0,0.00015989,2]
[394588632,1763742638603,-500.0,0.00015989,2]
[394588634,1763742638615,-500.0,0.00015989,2]
[394588636,1763742638625,-500.0,0.00015989,2]
[394588638,1763742638635,-500.0,0.00015989,2]
[394588640,1763742638645,-500.0,0.00015989,2]
[394588642,1763742638655,-500.0,0.00015989,2]
[394588644,1763742638665,-453.28481335,0.00015989,2]
[394588646,1763742638674,-500.0,0.00015989,2]
[394588648,1763742638684,-500.0,0.00015989,2]
[394588650,1763742638694,-500.0,0.00015989,2]
[394588652,1763742638706,-253.28481335,0.00015989,2]
[394588654,1763742638716,-36416.01278543,0.0001599,2]
[394588656,1763742638725,-185.45920622,0.00016031,2]
[394588658,1763742638735,-202.63,0.00016218,3]
[394588660,1763742638744,-607.93,0.00016218,3]
[394588662,1763742638754,-204.57396776,0.00016227,2]
[394588664,1763742638763,-890000.0,0.00016228,2]
[394588666,1763742638773,-1386.78395259,0.00016318,2]
[394588668,1763742638783,-209.40437684,0.00016318,2]
[394588670,1763742638794,-500.0,0.00016373,2]
[394588672,1763742638807,-205.838032,0.00016591,2]
[394588674,1763742638817,-2429.18630173,0.00016746,3]
[394588676,1763742638826,-11646.9682823,0.00016763,2]
[394588678,1763742638835,-217.15233878,0.00016866,2]
[394588680,1763742638845,-512.69976703,0.00016921,2]
[394588682,1763742638855,-209.40437684,0.00016974,2]
[394588684,1763742638865,-250.0,0.00016974,2]
[394588686,1763742638875,-250.0,0.00016974,2]
[394588688,1763742638886,-250.0,0.00016974,2]
[394588690,1763742638896,-250.0,0.00016974,2]
[394588692,1763742638906,-250.0,0.00016974,2]
[394588694,1763742638916,-250.0,0.00016974,2]
[394588696,1763742638925,-250.0,0.00016974,2]
[394588698,1763742638935,-250.0,0.00016974,2]
[394588700,1763742638944,-250.0,0.00016974,2]
[394588702,1763742638957,-250.0,0.00016974,2]
[394588704,1763742638966,-250.0,0.00016974,2]
[394588705,1763742638975,-4553.27635825,0.00017057,3]
[394588708,1763742638985,-151.0,0.000171,2]
[394588709,1763742638995,-151.0,0.000172,2]
[394588711,1763742639005,-182.54355196,0.00017242,2]
[394588713,1763742639014,-730.17420783,0.00017242,2]
[394588716,1763742639025,-1642.89196761,0.00017242,2]
[394588718,1763742639035,-2920.69683131,0.00017242,2]
[394588719,1763742639044,-180.18173601,0.00017242,2]
[394588721,1763742639054,-720.72694402,0.00017242,2]
[394588723,1763742639065,-1621.63562405,0.00017242,2]
[394588726,1763742639082,-4559.02521012,0.00017242,2]
[394588728,1763742639093,-185.45920621,0.00017288,2]
[394588730,1763742639102,-599.9694454,0.00017324,2]
[394588732,1763742639114,-35349.6555635,0.00017324,2]
[394588734,1763742639126,-225.18697532,0.00017414,2]
[394588736,1763742639136,-376.81,0.00017433,2]
[394588738,1763742639145,-2880.02486831,0.00017442,2]
[394588740,1763742639156,-414.0,0.00017453,2]
[394588742,1763742639166,-420.0,0.00017479,2]
[394588743,1763742639176,-311.549791,0.00017534,2]
[394588746,1763742639186,-405.26,0.00017588,3]
[394588748,1763742639196,-160.0,0.0001761,2]
[394588750,1763742639211,-2374.0278161,0.00017632,2]
[394588752,1763742639220,-285.0,0.00017732,2]
[394588754,1763742639230,-1448.05,0.00017758,2]
[394588756,1763742639241,-191.7209386,0.00017846,2]
[394588758,1763742639251,-191.7209386,0.00017856,2]
[394588760,1763742639261,-228.8119689,0.00017956,2]
[394588761,1763742639271,-233.51889341,0.00017962,2]
[394588763,1763742639280,-3000.0,0.00018082,2]
[394588765,1763742639290,-150.0,0.00018105,2]
[394588768,1763742639301,-1448.05,0.00018395,2]
[394588769,1763742639311,-1448.05,0.00018395,2]
[394588771,1763742639321,-1448.05,0.00018395,2]
[394588773,1763742639330,-215.62924251,0.0001851,2]
[394588775,1763742639339,-191.7209386,0.00018668,2]
[394588777,1763742639349,-191.7209386,0.00018668,2]
[394588779,1763742639360,-3366.36210591,0.00018884,2]
[394588781,1763742639371,-578.1,0.00019,2]
[394588783,1763742639380,-27545.26808407,0.00019,2]
[394588785,1763742639390,-3856.0,0.00019035,2]
[394588787,1763742639400,-1438.09495884,0.00019057,2]
[394588789,1763742639409,-1448.05,0.0001907,2]
[394588791,1763742639419,-599.9694454,0.00019103,2]
[394588793,1763742639430,-438.0,0.00019104,2]
[394588795,1763742639439,-587.0,0.00019111,2]
[394588797,1763742639449,-438.0,0.0001912,2]
[394588799,1763742639463,-438.0,0.0001913,2]
[394588801,1763742639473,-438.0,0.0001915,2]
[394588803,1763742639482,-438.0,0.00019173,2]
[394588806,1763742639491,-3000.0,0.00019178,2]
[394588808,1763742639500,-311.549791,0.00019199,4]
[394588810,1763742639509,-311.549791,0.00019206,2]
[394588812,1763742639519,-438.0,0.00019207,2]
[394588814,1763742639528,-203.3149019,0.00019299,2]
[394588816,1763742639539,-153.0,0.00019299,2]
[394588818,1763742639549,-153.0,0.00019299,2]
[394588820,1763742639559,-438.0,0.00019413,2]
[394588822,1763742639570,-438.0,0.0001945,2]
[394588824,1763742639579,-1448.05,0.00019458,2]
[394588826,1763742639589,-1448.05,0.00019458,2]
[394588828,1763742639598,-438.0,0.00019485,2]
[394588830,1763742639608,-164580.96803534,0.000195,2]
[394588872,1763742640185,-49868.46513028,0.000195,2]
[394589034,1763742646182,-1005.59895175,0.00019305,2]
[394589035,1763742646192,-17186.32104822,0.000195,2]
[394589036,1763742646203,-14249.13931454,0.000195,2]
[394589037,1763742649139,-47.4780915,0.000195,2]
[394589149,1763743747212,-191.44206224,7.771e-05,2]
[394589150,1763743747236,-191.44206224,7.85e-05,2]
[394589151,1763743747257,-191.44206224,7.929e-05,2]
[394589152,1763743747282,-150.0,8.05e-05,2]
[394589153,1763743747466,-191.44206224,8.507e-05,2]
[394589154,1763743747487,-177.0,0.0001005,2]
[394589155,1763743747508,-204.0,0.0001205,2]
[394589156,1763743747530,-3729.5009044,0.00012255,2]
[394589157,1763743747551,-163.99786798,0.00012699,2]
[394589158,1763743747573,-193.0,0.00012699,2]
[394589159,1763743747596,-149940.88732721,0.000127,2]
[394589160,1763743747626,-402465.74803827,0.000127,2]
[394589161,1763743747647,-301.448,0.00012798,2]
[394589162,1763743747671,-500.0,0.00012799,2]
[394589163,1763743747697,-500.0,0.00012799,2]
[394589164,1763743747719,-191.34423821,0.00012799,2]
[394589165,1763743747744,-542.62466879,0.00012799,2]
[394589166,1763743747764,-1692.43671389,0.000128,2]
[394589167,1763743747787,-14200.0,0.000128,2]
[394589168,1763743747807,-1048.338304,0.00013699,2]
[394589169,1763743747827,-337.4806016,0.00013699,2]
[394589170,1763743747847,-163.99786796,0.00014015,2]
[394589171,1763743747868,-231.0,0.0001405,2]
[394589172,1763743747892,-2524.77157945,0.00014762,2]
[394589173,1763743747913,-505.4158686,0.00014862,2]
[394589174,1763743747934,-284.13660834,0.00014862,2]
[394589175,1763743747954,-500.0,0.00014862,2]
[394589176,1763743747975,-500.0,0.00014862,2]
[394589177,1763743748001,-500.0,0.00014862,2]
[394589178,1763743748024,-500.0,0.00014862,2]
[394589179,1763743748045,-500.0,0.00014862,2]
[394589180,1763743748066,-500.0,0.00014862,2]
[394589181,1763743748086,-500.0,0.00014862,2]
[394589182,1763743748108,-500.0,0.00014862,2]
[394589183,1763743748128,-500.0,0.00014862,2]
[394589184,1763743748149,-500.0,0.00014862,2]
[394589185,1763743748173,-500.0,0.00014862,2]
[394589186,1763743748195,-341.31392534,0.00014862,2]
[394589187,1763743748217,-47035.3162823,0.00014863,2]
[394589188,1763743748238,-163.99786796,0.00015331,2]
[394589189,1763743748259,-1025.7,0.00015987,2]
[394589190,1763743748281,-1025.7,0.00015989,2]
[394589191,1763743748302,-1025.7,0.00015989,2]
[394589192,1763743748324,-258.0,0.0001605,2]
[394589193,1763743748344,-2166.43663361,0.0001611,2]
[394589194,1763743748366,-1386.78395259,0.00016218,2]
[394589195,1763743748388,-1025.7,0.00016227,2]